fUST/lending_fUST_20250908
["ID","MTS","AMOUNT","RATE_DAILY","PERIOD"]
[384260743,1757310653493,-523.46463686,0.00013972,2]
[384260745,1757310653503,-483.40365127,0.00013972,2]
[384260747,1757310653512,-480.0,0.00013972,2]
[384260749,1757310653522,-204.99717307,0.00013972,2]
[384260751,1757310653531,-480.56627479,0.00013972,2]
[384260753,1757310653540,-548.2,0.00013972,2]
[384260754,1757310653549,-480.0,0.00013972,2]
[384260756,1757310653561,-480.0,0.00013972,2]
[384260758,1757310653571,-480.0,0.00013972,2]
[384260760,1757310653580,-480.0,0.00013972,2]
[384260762,1757310653589,-1305.87,0.00013972,2]
[384260764,1757310653599,-482.57595267,0.00013972,2]
[384260766,1757310653609,-480.0,0.00013972,2]
[384260768,1757310653619,-1186.39,0.00013972,2]
[384260770,1757310653629,-600.32,0.00013972,2]
[384260772,1757310653639,-307.55232212,0.00013972,2]
[384260774,1757310653649,-480.0,0.00013972,2]
[384260776,1757310653658,-480.0,0.00013972,2]
[384260778,1757310653668,-480.0,0.00013972,2]
[384260780,1757310653677,-480.0,0.00013972,2]
[384260782,1757310653688,-471.40053704,0.00013972,2]
[384260784,1757310653698,-480.0,0.00013972,2]
[384260786,1757310653710,-575.99,0.00013972,2]
[384260788,1757310653719,-481.92687888,0.00013972,2]
[384260790,1757310653730,-480.0,0.00013972,2]
[384260792,1757310653739,-480.0,0.00013972,2]
[384260794,1757310653748,-783.49,0.00013972,2]
[384260796,1757310653759,-480.0,0.00013972,2]
[384260798,1757310653769,-480.0,0.00013972,2]
[384260800,1757310653778,-482.55470668,0.00013972,2]
[384260802,1757310653788,-690.89,0.00013972,2]
[384260804,1757310653798,-484.54481576,0.00013972,2]
[384260806,1757310653807,-480.0,0.00013972,2]
[384260807,1757310653816,-536.94718417,0.00013972,2]
[384260809,1757310653825,-480.0,0.00013972,2]
[384260811,1757310653833,-285.29932663,0.00013972,2]
[384260813,1757310653843,-480.0,0.00013972,2]
[384260815,1757310653852,-480.0,0.00013972,2]
[384260817,1757310653861,-480.0,0.00013972,2]
[384260819,1757310653871,-480.0,0.00013972,2]
[384260821,1757310653880,-480.0,0.00013972,2]
[384260823,1757310653889,-480.0,0.00013972,2]
[384260825,1757310653899,-480.0,0.00013972,2]
[384260827,1757310653908,-480.0,0.00013972,2]
[384260829,1757310653918,-480.0,0.00013972,2]
[384260831,1757310653927,-480.0,0.00013972,2]
[384260833,1757310653937,-480.0,0.00013972,2]
[384260835,1757310653947,-480.0,0.00013972,2]
[384260837,1757310653957,-483.84355051,0.00013972,2]
[384260839,1757310653967,-12653.83,0.00013972,2]
[384260841,1757310653977,-1438.99,0.00013972,2]
[384260843,1757310653987,-480.0,0.00013972,2]
[384260845,1757310653996,-480.0,0.00013972,2]
[384260847,1757310654006,-480.0,0.00013972,2]
[384260849,1757310654015,-480.0,0.00013972,2]
[384260851,1757310654024,-480.0,0.00013972,2]
[384260852,1757310654034,-480.0,0.00013972,2]
[384260854,1757310654043,-480.0,0.00013972,2]
[384260856,1757310654053,-480.0,0.00013972,2]
[384260858,1757310654062,-480.0,0.00013972,2]
[384260860,1757310654072,-480.0,0.00013972,2]
[384260862,1757310654081,-570.07,0.00013972,2]
[384260864,1757310654091,-480.0,0.00013972,2]
[384260866,1757310654100,-480.0,0.00013972,2]
[384260868,1757310654110,-480.0,0.00013972,2]
[384260870,1757310654119,-2636.56,0.00013972,2]
[384260880,1757310654209,-480.0,0.00013972,2]
[384260882,1757310654219,-480.0,0.00013972,2]
[384260884,1757310654229,-480.0,0.00013972,2]
[384260886,1757310654239,-480.0,0.00013972,2]
[384260888,1757310654248,-480.0,0.00013972,2]
[384260890,1757310654258,-485.13028202,0.00013972,2]
[384260892,1757310654267,-483.25759171,0.00013972,2]
[384260894,1757310654276,-496.18707859,0.00013972,2]
[384260896,1757310654285,-480.0,0.00013972,2]
[384260898,1757310654294,-480.0,0.00013972,2]
[384260900,1757310654304,-601.48,0.00013972,2]
[384260902,1757310654313,-480.0,0.00013972,2]
[384260903,1757310654322,-480.0,0.00013972,2]
[384260905,1757310654331,-480.0,0.00013972,2]
[384260907,1757310654340,-480.0,0.00013972,2]
[384260909,1757310654350,-480.0,0.00013972,2]
[384260911,1757310654359,-485.8140283,0.00013972,2]
[384260913,1757310654369,-480.0,0.00013972,2]
[384260915,1757310654378,-500.0,0.00013972,2]
[384260917,1757310654387,-500.0,0.00013973,2]
[384260919,1757310654397,-500.0,0.00013973,2]
[384260921,1757310654406,-393.34958586,0.00013973,2]
[384260923,1757310654415,-500.0,0.00013973,2]
[384260925,1757310654424,-500.0,0.00013973,2]
[384260927,1757310654434,-500.0,0.00013973,2]
[384260929,1757310654444,-500.0,0.00013973,2]
[384260931,1757310654453,-500.0,0.00013973,2]
[384260933,1757310654462,-500.0,0.00013973,2]
[384260935,1757310654471,-500.96424133,0.00013973,2]
[384260937,1757310654481,-500.3928702,0.00013973,2]
[384260939,1757310654491,-500.0,0.00013973,2]
[384260940,1757310654500,-166.52553564,0.00013973,2]
[384260942,1757310654509,-406.92111745,0.00013973,2]
[384260944,1757310654518,-501.56987047,0.00013973,2]
[384260946,1757310654528,-500.0,0.00013973,2]
[384260948,1757310654537,-294.28024454,0.00013973,2]
[384260950,1757310654547,-500.0,0.00013973,2]
[384260952,1757310654556,-500.0,0.00013973,2]
[384260954,1757310654569,-523.26446201,0.00013973,2]
[384260956,1757310654578,-228.13399916,0.00013973,2]
[384260958,1757310654588,-168.0,0.00013979,2]
[384260960,1757310654597,-1190.07438999,0.00013986,2]
[384260962,1757310654607,-928.61,0.00013989,2]
[384260964,1757310654616,-6671.33166265,0.0001399,2]
[384260966,1757310654626,-595.65584937,0.00014,2]
[384260968,1757310654635,-301.5951452,0.00014,2]
[384260970,1757310654644,-164.4725147,0.00014,2]
[384260972,1757310654653,-594.6294107,0.00014,2]
[384260974,1757310654663,-151.0,0.00014,2]
[384260975,1757310654675,-151.0,0.000141,2]
[384260977,1757310654687,-928.61,0.00014145,2]
[384260979,1757310654696,-168.0,0.0001415,2]
[384260980,1757310654706,-168.0,0.00014173,2]
[384260981,1757310654715,-168.0,0.00014179,2]
[384260982,1757310654724,-151.0,0.000142,2]
[384260983,1757310654734,-1000.0,0.00014221,2]
[384260984,1757310654744,-501.53389884,0.00014221,2]
[384260985,1757310654753,-1000.0,0.00014221,2]
[384260986,1757310654763,-298.23054015,0.00014221,2]
[384260987,1757310654772,-504.54261903,0.00014231,2]
[384260988,1757310654782,-500.70388252,0.00014231,2]
[384260989,1757310654792,-168.0,0.00014238,2]
[384260990,1757310654801,-928.61,0.00014245,2]
[384260991,1757310654811,-928.61,0.00014245,2]
[384260992,1757310654821,-928.61,0.00014245,2]
[384260993,1757310654830,-200.0,0.00014245,2]
[384260994,1757310654840,-500.0,0.00014246,2]
[384260995,1757310654849,-229.97511519,0.00014246,2]
[384260996,1757310654859,-500.0,0.00014246,2]
[384260997,1757310654869,-157.0,0.00014246,2]
[384260998,1757310654878,-500.0,0.00014246,2]
[384260999,1757310654888,-157.0,0.00014246,2]
[384261000,1757310654897,-234.97757122,0.00014246,2]
[384261002,1757310654907,-355.57383559,0.00014246,2]
[384261004,1757310654917,-202.64016978,0.00014246,2]
[384261006,1757310654926,-600.0,0.00014246,2]
[384261008,1757310654936,-500.0,0.00014246,2]
[384261010,1757310654945,-193.33159042,0.00014246,2]
[384261012,1757310654955,-411.85516512,0.00014246,2]
[384261014,1757310654964,-400.97956949,0.00014246,2]
[384261016,1757310654973,-480.0,0.00014246,2]
[384261018,1757310654983,-480.0,0.00014246,2]
[384261020,1757310654993,-480.0,0.00014246,2]
[384261022,1757310655003,-480.0,0.00014246,2]
[384261024,1757310655012,-480.0,0.00014246,2]
[384261026,1757310655022,-480.0,0.00014246,2]
[384261028,1757310655031,-480.0,0.00014246,2]
[384261030,1757310655041,-482.45990539,0.00014246,2]
[384261032,1757310655050,-480.0,0.00014246,2]
[384261034,1757310655059,-480.0,0.00014246,2]
[384261036,1757310655069,-480.0,0.00014246,2]
[384261038,1757310655078,-480.0,0.00014246,2]
[384261040,1757310655088,-205.43770538,0.00014246,2]
[384261042,1757310655098,-597.94220811,0.00014246,2]
[384261044,1757310655107,-480.0,0.00014246,2]
[384261046,1757310655117,-480.0,0.00014246,2]
[384261048,1757310655127,-484.37729036,0.00014246,2]
[384261050,1757310655136,-481.78310247,0.00014246,2]
[384261052,1757310655146,-733.2,0.00014246,2]
[384261054,1757310655156,-490.70469881,0.00014246,2]
[384261056,1757310655165,-480.0,0.00014246,2]
[384261058,1757310655175,-480.0,0.00014246,2]
[384261060,1757310655184,-484.28526812,0.00014246,2]
[384261062,1757310655193,-486.0795609,0.00014246,2]
[384261064,1757310655203,-482.29258253,0.00014246,2]
[384261066,1757310655212,-480.0,0.00014246,2]
[384261068,1757310655222,-480.0,0.00014246,2]
[384261070,1757310655232,-480.0,0.00014246,2]
[384261072,1757310655241,-480.0,0.00014246,2]
[384261074,1757310655250,-484.53105827,0.00014246,2]
[384261076,1757310655260,-485.26,0.00014246,2]
[384261078,1757310655269,-483.15461617,0.00014246,2]
[384261080,1757310655279,-480.0,0.00014246,2]
[384261082,1757310655288,-184.54953006,0.00014246,2]
[384261084,1757310655298,-480.0,0.00014246,2]
[384261086,1757310655307,-480.0,0.00014246,2]
[384261088,1757310655316,-480.0,0.00014246,2]
[384261090,1757310655326,-484.98848676,0.00014246,2]
[384261092,1757310655335,-480.0,0.00014246,2]
[384261094,1757310655345,-480.0,0.00014246,2]
[384261096,1757310655354,-480.0,0.00014246,2]
[384261097,1757310655363,-480.0,0.00014246,2]
[384261099,1757310655372,-480.0,0.00014246,2]
[384261101,1757310655381,-480.0,0.00014246,2]
[384261104,1757310655391,-480.0,0.00014246,2]
[384261105,1757310655400,-480.0,0.00014246,2]
[384261108,1757310655409,-480.0,0.00014246,2]
[384261109,1757310655418,-482.63081175,0.00014246,2]
[384261111,1757310655427,-480.0,0.00014246,2]
[384261114,1757310655437,-480.0,0.00014246,2]
[384261115,1757310655446,-487.84017376,0.00014246,2]
[384261117,1757310655455,-484.82695258,0.00014246,2]
[384261119,1757310655465,-486.50945096,0.00014246,2]
[384261121,1757310655474,-480.0,0.00014246,2]
[384261123,1757310655483,-492.27666819,0.00014246,2]
[384261125,1757310655492,-480.0,0.00014246,2]
[384261127,1757310655501,-480.0,0.00014246,2]
[384261129,1757310655511,-480.0,0.00014246,2]
[384261131,1757310655520,-480.0,0.00014246,2]
[384261133,1757310655529,-480.0,0.00014246,2]
[384261135,1757310655538,-480.0,0.00014246,2]
[384261137,1757310655547,-511.16867638,0.00014246,2]
[384261139,1757310655556,-480.0,0.00014246,2]
[384261141,1757310655569,-484.59056608,0.00014246,2]
[384261143,1757310655578,-480.0,0.00014246,2]
[384261145,1757310655588,-484.96736079,0.00014246,2]
[384261147,1757310655597,-480.0,0.00014246,2]
[384261149,1757310655607,-480.0,0.00014246,2]
[384261151,1757310655616,-484.53752094,0.00014246,2]
[384261153,1757310655626,-480.0,0.00014246,2]
[384261155,1757310655635,-480.0,0.00014246,2]
[384261157,1757310655645,-781.25,0.00014246,2]
[384261159,1757310655654,-480.0,0.00014246,2]
[384261161,1757310655664,-625.73669301,0.00014246,2]
[384261163,1757310655673,-480.0,0.00014246,2]
[384261165,1757310655683,-482.50514591,0.00014246,2]
[384261167,1757310655692,-443.22433724,0.00014246,2]
[384261169,1757310655702,-480.0,0.00014246,2]
[384261171,1757310655711,-481.95480422,0.00014246,2]
[384261173,1757310655720,-480.0,0.00014246,2]
[384261175,1757310655730,-481.79152334,0.00014246,2]
[384261177,1757310655739,-486.42720324,0.00014246,2]
[384261179,1757310655748,-481.39251681,0.00014246,2]
[384261181,1757310655757,-484.14115505,0.00014246,2]
[384261183,1757310655767,-481.29590324,0.00014246,2]
[384261185,1757310655776,-480.0,0.00014246,2]
[384261187,1757310655786,-484.34230666,0.00014246,2]
[384261189,1757310655795,-486.02893572,0.00014246,2]
[384261191,1757310655804,-525.27899166,0.00014246,2]
[384261193,1757310655814,-480.0,0.00014246,2]
[384261195,1757310655824,-481.79847252,0.00014246,2]
[384261197,1757310655833,-480.0,0.00014246,2]
[384261199,1757310655843,-480.0,0.00014246,2]
[384261224,1757310656059,-422.46642293,0.00014246,2]
[384261226,1757310656069,-482.75558228,0.00014246,2]
[384261228,1757310656078,-480.0,0.00014246,2]
[384261230,1757310656088,-489.64712353,0.00014246,2]
[384261232,1757310656098,-482.319419,0.00014246,2]
[384261234,1757310656107,-481.70242694,0.00014246,2]
[384261236,1757310656118,-480.0,0.00014246,2]
[384261238,1757310656128,-480.0,0.00014246,2]
[384261240,1757310656137,-480.0,0.00014246,2]
[384261241,1757310656146,-485.11457578,0.00014246,2]
[384261244,1757310656156,-468.93857904,0.00014246,2]
[384261246,1757310656166,-480.0,0.00014246,2]
[384261256,1757310656254,-480.0,0.00014246,2]
[384261258,1757310656264,-484.43876593,0.00014246,2]
[384261260,1757310656274,-486.82794312,0.00014246,2]
[384261262,1757310656284,-485.79724702,0.00014246,2]
[384261264,1757310656294,-480.0,0.00014246,2]
[384261266,1757310656305,-480.0,0.00014246,2]
[384261268,1757310656314,-480.0,0.00014246,2]
[384261270,1757310656323,-480.0,0.00014246,2]
[384261272,1757310656333,-480.0,0.00014246,2]
[384261274,1757310656342,-481.63728061,0.00014246,2]
[384261276,1757310656352,-480.0,0.00014246,2]
[384261278,1757310656363,-483.37883145,0.00014246,2]
[384261280,1757310656373,-481.64729573,0.00014246,2]
[384261282,1757310656383,-480.0,0.00014246,2]
[384261284,1757310656392,-301.19450877,0.00014246,2]
[384261286,1757310656402,-492.80459411,0.00014246,2]
[384261288,1757310656412,-483.48610168,0.00014246,2]
[384261290,1757310656421,-486.67372284,0.00014246,2]
[384261292,1757310656431,-480.0,0.00014246,2]
[384261295,1757310656441,-488.64660596,0.00014246,2]
[384261297,1757310656450,-480.0,0.00014246,2]
[384261299,1757310656460,-971.66,0.00014246,2]
[384261301,1757310656470,-480.0,0.00014246,2]
[384261302,1757310656481,-491.15923635,0.00014246,2]
[384261305,1757310656491,-480.0,0.00014246,2]
[384261307,1757310656502,-480.0,0.00014246,2]
[384261309,1757310656512,-483.57016137,0.00014246,2]
[384261311,1757310656522,-482.43177434,0.00014246,2]
[384261312,1757310656532,-480.0,0.00014246,2]
[384261314,1757310656541,-480.0,0.00014246,2]
[384261316,1757310656551,-484.15995961,0.00014246,2]
[384261318,1757310656562,-483.88117006,0.00014246,2]
[384261320,1757310656572,-491.40232942,0.00014246,2]
[384261322,1757310656582,-480.0,0.00014246,2]
[384261324,1757310656591,-485.34512212,0.00014246,2]
[384261326,1757310656601,-480.0,0.00014246,2]
[384261328,1757310656611,-490.04134187,0.00014246,2]
[384261330,1757310656621,-480.0,0.00014246,2]
[384261332,1757310656631,-505.0906378,0.00014246,2]
[384261334,1757310656641,-480.0,0.00014246,2]
[384261336,1757310656651,-480.0,0.00014246,2]
[384261338,1757310656660,-568.13,0.00014246,2]
[384261340,1757310656670,-484.92453631,0.00014246,2]
[384261342,1757310656680,-480.0,0.00014246,2]
[384261344,1757310656689,-480.0,0.00014246,2]
[384261346,1757310656699,-480.0,0.00014246,2]
[384261348,1757310656708,-480.0,0.00014246,2]
[384261351,1757310656718,-480.0,0.00014246,2]
[384261352,1757310656727,-480.0,0.00014246,2]
[384261355,1757310656736,-480.0,0.00014246,2]
[384261356,1757310656746,-480.0,0.00014246,2]
[384261359,1757310656756,-347.01706887,0.00014246,2]
[384261361,1757310656766,-4983.26,0.00014246,2]
[384261362,1757310656775,-1038.39,0.00014246,2]
[384261364,1757310656784,-480.0,0.00014246,2]
[384261366,1757310656793,-480.0,0.00014246,2]
[384261368,1757310656802,-2849.54,0.00014246,2]
[384261371,1757310656812,-511.56,0.00014246,2]
[384261372,1757310656821,-598.58437307,0.00014246,2]
[384261375,1757310656831,-480.0,0.00014246,2]
[384261376,1757310656840,-480.0,0.00014246,2]
[384261378,1757310656850,-488.50936666,0.00014246,2]
[384261380,1757310656860,-1374.54,0.00014246,2]
[384261382,1757310656869,-480.0,0.00014246,2]
[384261384,1757310656879,-489.86,0.00014246,2]
[384261387,1757310656888,-480.0,0.00014246,2]
[384261388,1757310656898,-480.0,0.00014246,2]
[384261390,1757310656907,-1253.23,0.00014246,2]
[384261392,1757310656916,-480.0,0.00014246,2]
[384261394,1757310656925,-486.53997613,0.00014246,2]
[384261396,1757310656935,-531.91,0.00014246,2]
[384261398,1757310656944,-805.39,0.00014246,2]
[384261401,1757310656954,-480.0,0.00014246,2]
[384261402,1757310656963,-480.0,0.00014246,2]
[384261404,1757310656972,-480.0,0.00014246,2]
[384261406,1757310656982,-541.57,0.00014246,2]
[384261409,1757310656992,-1803.99,0.00014246,2]
[384261411,1757310657001,-579.51,0.00014246,2]
[384261412,1757310657010,-480.0,0.00014246,2]
[384261414,1757310657019,-1268.63,0.00014246,2]
[384261416,1757310657029,-484.20269311,0.00014246,2]
[384261418,1757310657038,-480.0,0.00014246,2]
[384261420,1757310657047,-480.0,0.00014246,2]
[384261422,1757310657056,-259.36499973,0.00014246,2]
[384261424,1757310657066,-480.0,0.00014246,2]
[384261426,1757310657075,-480.0,0.00014246,2]
[384261428,1757310657084,-491.82868523,0.00014246,2]
[384261430,1757310657094,-480.0,0.00014246,2]
[384261432,1757310657103,-489.37899363,0.00014246,2]
[384261434,1757310657113,-483.90102912,0.00014246,2]
[384261436,1757310657122,-2349.28,0.00014246,2]
[384261438,1757310657129,-480.0,0.00014246,2]
[384261440,1757310657138,-528.06,0.00014246,2]
[384261442,1757310657148,-480.0,0.00014246,2]
[384261444,1757310657157,-695.3,0.00014246,2]
[384261446,1757310657166,-480.0,0.00014246,2]
[384261448,1757310657176,-480.0,0.00014246,2]
[384261450,1757310657185,-480.0,0.00014246,2]
[384261453,1757310657196,-480.0,0.00014246,2]
[384261455,1757310657205,-1526.58,0.00014246,2]
[384261456,1757310657214,-480.0,0.00014246,2]
[384261458,1757310657224,-480.0,0.00014246,2]
[384261460,1757310657233,-548.2,0.00014246,2]
[384261462,1757310657242,-480.0,0.00014246,2]
[384261464,1757310657251,-480.0,0.00014246,2]
[384261466,1757310657260,-480.0,0.00014246,2]
[384261468,1757310657269,-480.0,0.00014246,2]
[384261470,1757310657278,-1305.87,0.00014246,2]
[384261472,1757310657287,-480.0,0.00014246,2]
[384261474,1757310657297,-1186.39,0.00014246,2]
[384261476,1757310657306,-600.32,0.00014246,2]
[384261478,1757310657315,-480.0,0.00014246,2]
[384261480,1757310657325,-487.57658633,0.00014246,2]
[384261482,1757310657334,-480.0,0.00014246,2]
[384261484,1757310657344,-480.0,0.00014246,2]
[384261486,1757310657353,-480.0,0.00014246,2]
[384261488,1757310657362,-575.99,0.00014246,2]
[384261490,1757310657371,-480.0,0.00014246,2]
[384261492,1757310657380,-482.67057599,0.00014246,2]
[384261494,1757310657390,-783.49,0.00014246,2]
[384261496,1757310657399,-480.0,0.00014246,2]
[384261498,1757310657409,-690.89,0.00014246,2]
[384261500,1757310657418,-480.0,0.00014246,2]
[384261502,1757310657428,-480.0,0.00014246,2]
[384261504,1757310657438,-485.04134575,0.00014246,2]
[384261506,1757310657447,-488.18620337,0.00014246,2]
[384261508,1757310657457,-480.0,0.00014246,2]
[384261510,1757310657465,-480.0,0.00014246,2]
[384261512,1757310657474,-480.0,0.00014246,2]
[384261514,1757310657483,-480.0,0.00014246,2]
[384261516,1757310657493,-480.0,0.00014246,2]
[384261518,1757310657502,-480.0,0.00014246,2]
[384261520,1757310657512,-480.0,0.00014246,2]
[384261522,1757310657521,-489.44652936,0.00014246,2]
[384261524,1757310657530,-480.0,0.00014246,2]
[384261526,1757310657540,-12653.83,0.00014246,2]
[384261528,1757310657549,-1438.99,0.00014246,2]
[384261531,1757310657559,-480.0,0.00014246,2]
[384261533,1757310657572,-480.0,0.00014246,2]
[384261535,1757310657581,-480.0,0.00014246,2]
[384261537,1757310657591,-480.0,0.00014246,2]
[384261538,1757310657600,-480.0,0.00014246,2]
[384261540,1757310657610,-480.0,0.00014246,2]
[384261542,1757310657619,-480.0,0.00014246,2]
[384261544,1757310657628,-485.71070069,0.00014246,2]
[384261546,1757310657640,-485.59975425,0.00014246,2]
[384261549,1757310657649,-480.0,0.00014246,2]
[384261551,1757310657659,-570.07,0.00014246,2]
[384261553,1757310657668,-480.0,0.00014246,2]
[384261555,1757310657678,-483.05105944,0.00014246,2]
[384261557,1757310657688,-480.0,0.00014246,2]
[384261559,1757310657699,-2636.56,0.00014246,2]
[384261561,1757310657708,-480.0,0.00014246,2]
[384261563,1757310657717,-480.0,0.00014246,2]
[384261565,1757310657727,-480.0,0.00014246,2]
[384261567,1757310657737,-481.04892226,0.00014246,2]
[384261569,1757310657747,-486.99763522,0.00014246,2]
[384261571,1757310657756,-480.0,0.00014246,2]
[384261573,1757310657766,-601.48,0.00014246,2]
[384261575,1757310657775,-484.59644974,0.00014246,2]
[384261577,1757310657785,-480.0,0.00014246,2]
[384261579,1757310657794,-480.0,0.00014246,2]
[384261581,1757310657804,-480.0,0.00014246,2]
[384261583,1757310657813,-482.91167353,0.00014246,2]
[384261585,1757310657822,-485.56037806,0.00014246,2]
[384261587,1757310657832,-500.0,0.00014246,2]
[384261589,1757310657842,-168.0,0.00014294,2]
[384261591,1757310657852,-151.0,0.000144,2]
[384261593,1757310657862,-151.0,0.000144,2]
[384261595,1757310657871,-151.0,0.000145,2]
[384261605,1757310657956,-928.61,0.00014519,2]
[384261607,1757310657966,-928.61,0.00014519,2]
[384261609,1757310657975,-928.61,0.00014519,2]
[384261610,1757310657984,-928.61,0.00014519,2]
[384261612,1757310657994,-928.61,0.00014519,2]
[384261614,1757310658003,-928.61,0.00014519,2]
[384261616,1757310658013,-928.61,0.00014519,2]
[384261618,1757310658023,-928.65883504,0.00014519,2]
[384261621,1757310658032,-201.32629262,0.00014519,2]
[384261622,1757310658042,-290.7417111,0.0001452,2]
[384261625,1757310658052,-502.31691441,0.0001452,2]
[384261626,1757310658061,-242.20396247,0.0001452,2]
[384261627,1757310658070,-500.0,0.0001452,2]
[384261628,1757310658079,-169.20345706,0.0001452,2]
[384261629,1757310658088,-600.0,0.0001452,2]
[384261630,1757310658097,-480.0,0.0001452,2]
[384261631,1757310658106,-480.0,0.0001452,2]
[384261632,1757310658115,-480.0,0.0001452,2]
[384261633,1757310658124,-480.0,0.0001452,2]
[384261634,1757310658133,-480.0,0.0001452,2]
[384261635,1757310658143,-480.0,0.0001452,2]
[384261636,1757310658151,-480.0,0.0001452,2]
[384261637,1757310658160,-500.0,0.0001452,2]
[384261638,1757310658169,-486.30402891,0.0001452,2]
[384261639,1757310658178,-489.3578687,0.0001452,2]
[384261640,1757310658187,-494.45746094,0.0001452,2]
[384261641,1757310658197,-480.0,0.0001452,2]
[384261642,1757310658206,-480.0,0.0001452,2]
[384261643,1757310658215,-733.2,0.0001452,2]
[384261644,1757310658225,-480.0,0.0001452,2]
[384261645,1757310658234,-483.94252839,0.0001452,2]
[384261647,1757310658243,-481.21160543,0.0001452,2]
[384261649,1757310658252,-483.62397366,0.0001452,2]
[384261651,1757310658262,-480.0,0.0001452,2]
[384261653,1757310658271,-480.0,0.0001452,2]
[384261654,1757310658280,-480.0,0.0001452,2]
[384261656,1757310658289,-152.19388794,0.0001452,2]
[384261658,1757310658299,-480.0,0.0001452,2]
[384261660,1757310658310,-482.65768934,0.0001452,2]
[384261662,1757310658326,-484.24537994,0.0001452,2]
[384261664,1757310658335,-480.0,0.0001452,2]
[384261666,1757310658344,-168.62949732,0.0001452,2]
[384261668,1757310658355,-480.0,0.0001452,2]
[384261670,1757310658364,-480.0,0.0001452,2]
[384261672,1757310658373,-480.0,0.0001452,2]
[384261674,1757310658383,-485.53094008,0.0001452,2]
[384261676,1757310658393,-480.0,0.0001452,2]
[384261678,1757310658402,-483.60669262,0.0001452,2]
[384261680,1757310658412,-480.0,0.0001452,2]
[384261682,1757310658422,-480.0,0.0001452,2]
[384261684,1757310658432,-484.41325254,0.0001452,2]
[384261686,1757310658441,-480.0,0.0001452,2]
[384261689,1757310658451,-480.0,0.0001452,2]
[384261690,1757310658460,-480.0,0.0001452,2]
[384261693,1757310658469,-480.0,0.0001452,2]
[384261695,1757310658479,-781.25,0.0001452,2]
[384261697,1757310658488,-480.0,0.0001452,2]
[384261698,1757310658497,-480.0,0.0001452,2]
[384261701,1757310658507,-480.0,0.0001452,2]
[384261703,1757310658516,-480.0,0.0001452,2]
[384261705,1757310658525,-510.4260381,0.0001452,2]
[384261706,1757310658535,-480.0,0.0001452,2]
[384261708,1757310658544,-480.0,0.0001452,2]
[384261710,1757310658553,-487.19386312,0.0001452,2]
[384261713,1757310658567,-462.82004792,0.0001452,2]
[384261715,1757310658577,-485.3875033,0.0001452,2]
[384261717,1757310658586,-480.0,0.0001452,2]
[384261718,1757310658595,-484.51145925,0.0001452,2]
[384261721,1757310658606,-480.0,0.0001452,2]
[384261723,1757310658615,-480.0,0.0001452,2]
[384261724,1757310658624,-480.0,0.0001452,2]
[384261726,1757310658634,-971.66,0.0001452,2]
[384261729,1757310658644,-428.31382866,0.0001452,2]
[384261730,1757310658653,-480.0,0.0001452,2]
[384261733,1757310658663,-480.0,0.0001452,2]
[384261735,1757310658672,-480.0,0.0001452,2]
[384261736,1757310658682,-480.0,0.0001452,2]
[384261739,1757310658692,-480.0,0.0001452,2]
[384261740,1757310658702,-568.13,0.0001452,2]